bitfinex-derivatives/quotes_BNBF0:USTF0_20250220
["timestamp","ask_amount","ask_price","bid_price","bid_amount"]
[1740060735766,1.37203876,653.45,651.68,1.12881073]
[1740060738966,2.42133342,653.53,651.51,1.12881073]
[1740060739172,5.69114019,653.53,651.51,1.12881073]
[1740060739367,3.26980677,653.52,651.51,1.12881073]
[1740060739568,3.26980677,653.63,651.51,1.12881073]
[1740060739872,3.26980677,653.62,651.51,1.12881073]
[1740060740171,3.26980677,653.61,651.51,1.12881073]
[1740060740371,3.26980677,653.63,651.51,1.12881073]
[1740060740572,3.26980677,653.62,651.51,1.12881073]
[1740060740872,2.42133342,653.64,651.51,1.12881073]
[1740060740873,5.69114019,653.61,651.51,1.12881073]
[1740060741072,3.26980677,653.6,651.51,1.12881073]
[1740060741372,3.26980677,653.59,651.51,1.12881073]
[1740060741572,3.26980677,653.58,651.51,1.12881073]
[1740060741773,3.26980677,653.57,651.51,1.12881073]
[1740060742072,3.26980677,653.56,651.51,1.12881073]
[1740060742272,3.26980677,653.55,651.51,1.12881073]
[1740060742474,1.14400735,653.43,651.51,1.12881073]
[1740060742672,3.26980677,653.42,651.51,1.12881073]
[1740060742873,3.26980677,653.41,651.51,1.12881073]
[1740060743171,3.26980677,653.4,651.51,1.12881073]
[1740060743367,3.26980677,653.39,651.51,1.12881073]
[1740060743673,3.26980677,653.38,651.51,1.12881073]
[1740060743874,3.26980677,653.37,651.51,1.12881073]
[1740060744075,3.26980677,653.36,651.51,1.12881073]
[1740060744373,5.69114019,653.35,651.51,1.12881073]
[1740060744573,3.26980677,653.34,651.51,1.12881073]
[1740060744873,3.26980677,653.33,651.51,1.12881073]
[1740060745068,3.26980677,653.32,651.51,1.12881073]
[1740060745267,3.26980677,653.31,651.51,1.12881073]
[1740060745473,3.26980677,653.3,651.51,1.12881073]
[1740060745674,3.26980677,653.29,651.51,1.12881073]
[1740060745874,3.26980677,653.28,651.51,1.12881073]
[1740060746068,5.69114019,653.27,651.51,1.12881073]
[1740060746270,3.26980677,653.26,651.51,1.12881073]
[1740060746472,3.26980677,653.25,651.51,1.12881073]
[1740060746669,3.26980677,653.24,651.51,1.12881073]
[1740060746972,3.26980677,653.23,651.51,1.12881073]
[1740060747169,3.26980677,653.22,651.51,1.12881073]
[1740060747373,3.26980677,653.21,651.51,1.12881073]
[1740060747675,2.42133342,653.27,651.51,1.12881073]
[1740060748374,1.14400735,653.34,651.51,1.12881073]
[1740060748972,1.14400735,653.11,651.46,1.12881073]
[1740060752179,2.42133342,653.32,651.16,1.12881073]
[1740060752180,1.14400735,653.3,651.16,1.12881073]
[1740060752379,4.41187146,653.3,651.16,1.12881073]
[1740060752579,3.26786411,653.29,651.16,1.12881073]
[1740060752774,1.14400735,653.3,651.16,1.12881073]
[1740060754280,3.26786411,653.29,651.16,1.12881073]
[1740060754478,3.26786411,653.28,651.16,1.12881073]
[1740060754677,3.26786411,653.27,651.16,1.12881073]
[1740060754882,3.26786411,653.26,651.16,1.12881073]
[1740060755079,3.26786411,653.27,651.16,1.12881073]
[1740060755284,4.41187146,653.27,651.1,1.12881073]
[1740060755484,3.26786411,653.26,651.1,1.12881073]
[1740060755680,1.14400735,653.27,651.1,1.12881073]
[1740060757485,1.14400735,653.4,651.18,1.12881073]
[1740060761686,1.14400735,653.56,651.01,1.12881073]
[1740060764489,1.14400735,653.5,651.1,1.12881073]
[1740060767091,1.14400735,653.47,651.12,1.12881073]
[1740060769288,3.54045839,653.46,651.12,1.12881073]
[1740060769486,1.14400735,653.35,651.22,1.12881073]
[1740060771789,3.55781319,653.35,651.22,1.12881073]
[1740060772195,1.14400735,653.19,651.28,1.12881073]
[1740060774891,1.14400735,653.15,651.32,1.12881073]
[1740060778497,1.14400735,653.05,651.46,1.12881073]
[1740060780593,1.14400735,653.29,651.24,1.12881073]
[1740060783103,1.14400735,653.32,651.23,1.12881073]
[1740060786100,1.14400735,653.32,651.24,1.12881073]
[1740060789304,1.14400735,653.32,651.1,1.12881073]
[1740060789305,1.14400735,653.21,651.33,1.12881073]
[1740060792108,1.14400735,653.23,651.31,1.12881073]
[1740060794705,1.14400735,653.23,651.25,1.12881073]
[1740060797613,1.14400735,653.13,651.29,1.12881073]
[1740060799914,1.14400735,653.13,651.4,1.12881073]
[1740060802814,1.14400735,653.19,651.4,1.12881073]
[1740060806016,1.14400735,653.19,650.99,1.6]
[1740060806017,1.14400735,653.31,651.6,1.12881073]
[1740060809819,1.14400735,653.49,651.53,1.12881073]
[1740060812513,3.26773213,653.65,651.47,1.12881073]
[1740060812514,1.14400735,653.55,651.47,1.12881073]
[1740060816020,9.14501435,660.66,651.11,1.59938108]
[1740060816021,1.14400735,654.02,651.24,1.12881073]
[1740060816523,3.54494757,654.01,651.25,2.18321898]
[1740060816716,3.54494757,654.0,651.25,5.20168896]
[1740060816923,1.14400735,654.02,651.25,3.01846998]
[1740060817817,1.14400735,654.02,651.24,1.12881073]
[1740060818522,1.14400735,654.43,651.11,1.59938108]
[1740060818717,0.28116385,654.42,651.11,1.59938108]
[1740060820526,1.37203876,654.4,651.15,1.12881073]
[1740060820739,1.14400735,654.12,651.15,1.12881073]
[1740060823624,0.28120261,654.11,651.15,1.12881073]
[1740060823825,0.28120261,654.11,651.11,1.59938108]
[1740060824026,1.14400735,654.26,651.11,1.59938108]
[1740060824226,0.28120205,654.25,651.11,1.59938108]
[1740060825727,1.14400735,654.26,651.11,1.59938108]
[1740060826025,0.28120058,654.25,651.11,1.59938108]
[1740060826824,1.14400735,654.02,651.39,1.12404203]
[1740060827025,0.28120058,654.01,651.39,1.12404203]
[1740060829428,3.26130184,654.0,651.39,1.12404203]
[1740060829628,3.54250242,653.99,651.39,1.12404203]
[1740060829824,3.54250242,653.98,651.39,1.12404203]
[1740060830029,3.54250242,653.97,651.39,1.12404203]
[1740060830223,3.54250242,653.96,651.39,1.12404203]
[1740060830430,3.54250242,653.95,651.39,1.12404203]
[1740060830631,1.14400735,653.92,651.46,1.12404203]
[1740060830830,0.28120058,653.91,651.46,1.12404203]
[1740060831730,1.14400735,653.92,651.46,1.12404203]
[1740060833633,1.14400735,653.79,651.68,1.12404203]
[1740060836734,1.14400735,653.73,651.73,1.12404203]
[1740060840037,1.14400735,653.73,651.29,1.599032]
[1740060840038,1.14400735,653.58,651.86,1.12404203]
[1740060843234,1.14400735,653.57,651.86,1.12404203]
[1740060843438,1.14400735,653.57,651.87,1.12404203]
[1740060846542,1.14400735,653.65,652.07,1.12404203]
[1740060850048,1.14400735,653.74,652.0,1.12404203]
[1740060852853,1.14400735,654.02,651.82,1.12404203]
[1740060855853,1.14400735,654.02,651.81,1.12404203]
[1740060857254,3.53809906,654.01,651.81,1.12404203]
[1740060857455,3.53809906,654.0,651.81,1.12404203]
[1740060857656,3.53809778,653.99,651.81,1.12404203]
[1740060857850,3.53809778,653.98,651.81,1.12404203]
[1740060858055,3.53809778,653.97,651.81,1.12404203]
[1740060858250,3.53809778,653.96,651.81,1.12404203]
[1740060858452,4.68210513,653.95,651.77,1.12404203]
[1740060858656,3.53809778,653.94,651.77,1.12404203]
[1740060858858,0.28112695,653.93,651.77,1.12404203]
[1740060859255,2.41130224,653.94,651.77,1.12404203]
[1740060859456,0.2811493,653.93,651.77,1.12404203]
[1740060860657,1.14400735,653.95,651.77,1.12404203]
[1740060860857,0.28113857,653.94,651.77,1.12404203]
[1740060861156,1.14400735,653.95,651.77,1.12404203]
[1740060861457,0.28113744,653.94,651.77,1.12404203]
[1740060861658,1.14400735,653.67,651.86,1.12404203]
[1740060864755,1.14400735,653.67,651.89,1.12404203]
[1740060867160,1.14400735,653.91,651.81,1.12404203]
[1740060870356,1.14400735,653.91,651.5,1.12881073]
[1740060870357,1.14400735,653.69,651.94,1.12404203]
[1740060873063,1.14400735,653.57,651.99,1.12404203]
[1740060876563,1.14400735,653.92,651.69,1.12404203]
[1740060879971,1.14400735,653.98,651.55,1.12404203]
[1740060880171,0.28121502,653.97,651.55,1.12404203]
[1740060881465,0.2812072,653.96,651.55,1.12404203]
[1740060881669,0.2812072,653.95,651.55,1.12404203]
[1740060881965,0.2812072,653.94,651.55,1.12404203]
[1740060882166,0.2812072,653.97,651.55,1.12404203]
[1740060882369,0.2812072,653.96,651.55,1.12404203]
[1740060882665,0.2812072,653.95,651.55,1.12404203]
[1740060882868,0.2812072,653.97,651.55,1.12404203]
[1740060883070,0.2812072,653.96,651.55,1.12404203]
[1740060883270,0.2812072,653.95,651.55,1.12404203]
[1740060883470,0.2812072,653.94,651.55,1.12404203]
[1740060883670,2.4211285,654.29,651.64,1.12404203]
[1740060883671,1.14400735,653.71,651.64,1.12404203]
[1740060883864,3.26994775,653.7,651.64,1.12404203]
[1740060884068,3.26994775,653.69,651.64,1.12404203]
[1740060884263,3.26994775,653.7,651.64,1.12404203]
[1740060884471,1.14400735,653.71,651.64,1.12404203]
[1740060884666,3.55118864,653.7,651.64,1.12404203]
[1740060884866,3.55118864,653.69,651.64,1.12404203]
[1740060885165,3.55118864,653.68,651.64,1.12404203]
[1740060885371,3.55118864,653.67,651.64,1.12404203]
[1740060885570,1.14400735,653.71,651.64,1.12404203]
[1740060885571,3.55118864,653.66,651.64,1.12404203]
[1740060885770,3.26994775,653.65,651.64,1.12404203]
[1740060885971,3.26994775,653.64,651.64,1.12404203]
[1740060886172,3.26994775,653.63,651.64,1.12404203]
[1740060886466,2.4211285,653.94,651.66,1.12404203]
[1740060886467,1.14400735,653.42,651.66,1.12404203]
[1740060886668,3.26994775,653.41,651.66,1.12404203]
[1740060886875,3.26994775,653.4,651.66,1.12404203]
[1740060887064,3.26994775,653.39,651.66,1.12404203]
[1740060887371,3.26994775,653.38,651.66,1.12404203]
[1740060887572,3.26994775,653.37,651.66,1.12404203]
[1740060887870,3.26994775,653.36,651.66,1.12404203]
[1740060888071,3.26994775,653.35,651.66,1.12404203]
[1740060888371,1.14400735,653.2,651.7,1.12404203]
[1740060890764,1.14400735,653.32,651.39,1.12404203]
[1740060894368,1.14400735,653.31,651.37,1.12404203]
[1740060897976,1.14400735,653.38,651.37,1.12404203]
[1740060898175,1.14400735,653.38,651.22,1.12404203]
[1740060898875,3.53669997,653.37,651.22,1.12404203]
[1740060899076,3.53669997,653.36,651.22,1.12404203]
[1740060899371,5.95782847,653.35,651.22,1.12404203]
[1740060899576,3.53669997,653.34,651.22,1.12404203]
[1740060899876,3.53669997,653.33,651.22,1.12404203]
[1740060900072,3.53669997,653.32,651.22,1.12404203]
[1740060900275,3.53669997,653.31,651.22,1.12404203]
[1740060900475,3.53669997,653.3,651.22,1.12404203]
[1740060900674,0.28135389,653.29,651.22,1.12404203]
[1740060900978,3.25534608,653.36,651.22,1.12404203]
[1740060901176,0.28140327,653.35,651.22,1.12404203]
[1740060901376,1.14400735,653.22,651.23,1.12404203]
[1740060904075,0.28142461,653.21,651.23,1.12404203]
[1740060904281,1.14400735,653.22,651.23,1.12404203]
[1740060904475,0.28145856,653.21,651.23,1.12404203]
[1740060904681,0.28148312,653.2,650.93,1.12404203]
[1740060904882,0.28148312,653.33,650.93,1.12404203]
[1740060905181,0.28148312,653.32,650.93,1.12404203]
[1740060905576,3.5368292,653.31,650.93,1.12404203]
[1740060905777,4.30387383,653.3,650.93,1.12404203]
[1740060905980,4.30387383,653.29,650.93,1.12404203]
[1740060906177,6.72500233,653.28,650.93,1.12404203]
[1740060906382,4.30387383,653.27,650.93,1.12404203]
[1740060906682,4.30387383,653.26,650.93,1.12404203]
[1740060906883,2.4211285,653.28,650.93,1.12404203]
[1740060906884,4.30387383,653.25,650.93,1.12404203]
[1740060907083,3.5368292,653.24,650.93,1.12404203]
[1740060907279,3.5368292,653.24,650.62,1.12404203]
[1740060907280,1.14400735,653.05,650.62,1.12404203]
[1740060907484,0.28148312,653.04,650.62,1.12404203]
[1740060907678,1.14400735,653.05,650.62,1.12404203]
[1740060910481,1.14400735,653.55,650.49,1.60087097]
[1740060910783,0.2815266,653.54,650.49,1.60087097]
[1740060913681,1.14400735,653.47,650.49,1.60087097]
[1740060913883,0.2815266,653.46,650.49,1.60087097]
[1740060914283,0.2815266,653.45,650.49,1.60087097]
[1740060914485,0.2815266,653.44,650.49,1.60087097]
[1740060914689,3.23715771,653.43,650.49,1.60087097]
[1740060914890,3.51864278,653.42,650.49,1.60087097]
[1740060915083,4.28558051,653.41,650.49,1.60087097]
[1740060915290,4.28558051,653.4,650.49,1.60087097]
[1740060915490,4.28558051,653.39,650.49,1.60087097]
[1740060915691,4.28558051,653.38,650.49,1.60087097]
[1740060915889,4.28558051,653.37,650.49,1.60087097]
[1740060916089,4.28558051,653.36,650.49,1.60087097]
[1740060916289,4.28558051,653.35,650.49,1.60087097]
[1740060916486,4.28558051,653.34,650.49,1.60087097]
[1740060916690,4.28558051,653.33,650.49,1.60087097]
[1740060916891,4.28558051,653.32,650.49,1.60087097]
[1740060917083,1.0484228,653.31,650.49,1.60087097]
[1740060917288,0.28148507,653.3,650.49,1.60087097]
[1740060917488,0.28148507,653.29,650.49,1.60087097]
[1740060917692,1.14400735,653.17,650.65,1.12404203]
[1740060917887,0.28148507,653.16,650.65,1.12404203]
[1740060918391,0.28147764,653.15,650.65,1.12404203]
[1740060918591,0.28147764,653.16,650.65,1.12404203]
[1740060918793,0.28147764,653.15,650.65,1.12404203]
[1740060918992,0.28147764,653.14,650.65,1.12404203]
[1740060919295,0.28147764,653.13,650.65,1.12404203]
[1740060919495,0.28147764,653.12,650.65,1.12404203]
[1740060919794,0.28147764,653.11,650.65,1.12404203]
[1740060920092,0.28147764,653.16,650.65,1.12404203]
[1740060920287,0.28147764,653.15,650.65,1.12404203]
[1740060920493,0.28147764,653.16,650.65,1.12404203]
[1740060920689,0.28147764,653.15,650.65,1.12404203]
[1740060920888,0.28147764,653.14,650.65,1.12404203]
[1740060921088,0.28147764,653.13,650.65,1.12404203]
[1740060921291,0.28147764,653.16,650.69,1.12404203]
[1740060921488,0.28147764,653.15,650.69,1.12404203]
[1740060921691,0.2814225,653.14,650.69,1.12404203]
[1740060921889,0.2814225,653.18,650.69,1.12404203]
[1740060922091,0.2814225,653.17,650.69,1.12404203]
[1740060922289,0.2814225,653.18,650.69,1.12404203]
[1740060922494,0.2814225,653.17,650.69,1.12404203]
[1740060922694,0.2814225,653.16,650.69,1.12404203]
[1740060922895,0.2814225,653.15,650.69,1.12404203]
[1740060923190,0.2814225,653.14,650.69,1.12404203]
[1740060923395,0.2814225,653.18,650.69,1.12404203]
[1740060923999,1.14400735,653.14,650.86,1.12404203]
[1740060924298,0.2814225,653.13,650.86,1.12404203]
[1740060925798,0.30626933,653.02,650.86,1.12404203]
[1740060925999,0.2814225,653.01,650.86,1.12404203]
[1740060926201,0.30632093,652.91,650.86,1.12404203]
[1740060926395,0.30632093,652.91,650.94,1.12404203]
[1740060928701,0.30632093,652.91,651.01,1.12404203]
[1740060930996,1.45032828,652.91,651.07,1.12404203]
[1740060934303,0.30632093,652.91,650.88,1.12404203]
[1740060937203,1.14400735,652.82,651.15,1.12404203]
[1740060937810,0.30637254,652.8,651.15,1.12404203]
[1740060940018,0.30637254,652.8,650.94,1.12404203]
[1740060943616,0.30637254,652.8,651.04,1.12404203]
[1740060946123,1.14400735,652.72,651.34,1.12404203]
[1740060946425,0.30641948,652.7,651.34,1.12404203]
[1740060948724,3.26138319,652.69,651.34,1.12404203]
[1740060949026,1.14400735,652.62,651.29,1.12404203]
[1740060949222,0.30646644,652.6,651.29,1.12404203]
[1740060952423,1.14400735,652.5,651.29,1.12404203]
[1740060952625,1.14400735,652.5,651.22,1.12404203]
[1740060953228,0.3065228,652.48,651.22,1.12404203]
[1740060956329,0.3065228,652.48,651.15,1.12404203]
[1740060959632,0.3065228,652.48,651.19,1.12404203]
[1740060963229,0.3065228,652.48,651.26,1.12404203]
[1740060965534,0.3065228,652.48,651.34,1.12404203]
[1740060968134,0.3065228,652.48,651.3,1.12404203]
[1740060971736,0.3065228,652.48,651.19,1.12404203]
[1740060974837,0.3065228,652.48,651.14,1.12404203]
[1740060978136,0.3065228,652.48,650.92,1.12881073]
[1740060978137,0.3065228,652.48,651.18,1.12404203]
[1740060981641,0.3065228,652.48,651.31,1.12404203]
[1740060983849,0.3065228,652.48,651.19,1.12404203]
[1740060986749,0.3065228,652.48,651.21,1.12404203]
[1740060990252,0.3065228,652.48,651.15,1.12404203]
[1740060992751,0.3065228,652.48,651.16,1.12404203]
[1740060996060,0.3065228,652.48,651.18,1.12404203]
[1740061003169,0.3065228,652.48,650.94,1.12404203]
[1740061004167,0.3065228,652.48,650.93,1.12404203]
[1740061006366,1.14400735,652.77,650.96,1.12404203]
[1740061009371,1.14400735,652.82,651.01,1.12404203]
[1740061012078,1.14400735,653.12,651.0,1.12404203]
[1740061014779,3.27232612,653.11,651.0,1.12404203]
[1740061014985,3.27232612,653.1,650.92,1.12404203]
[1740061015183,3.27232612,653.09,650.92,1.12404203]
[1740061015484,3.55386747,653.08,650.92,1.12404203]
[1740061015685,3.55386747,653.07,650.92,1.12404203]
[1740061015985,3.55386747,653.06,650.92,1.12404203]
[1740061016183,3.55386747,653.05,650.92,1.12404203]
[1740061016381,3.55386747,653.04,650.92,1.12404203]
[1740061016578,3.55386747,653.03,650.92,1.12404203]
[1740061016779,3.55386747,653.02,650.92,1.12404203]
[1740061016981,1.14400735,652.65,651.0,1.12404203]
[1740061019586,1.14400735,652.65,650.5,1.35457287]
[1740061019587,1.14400735,652.65,650.98,1.12404203]
[1740061019886,3.27232612,652.64,650.98,1.12404203]
[1740061020081,3.27232612,652.63,650.98,1.12404203]
[1740061020284,3.27232612,652.62,650.98,1.12404203]
[1740061020484,1.14400735,652.65,650.98,1.12404203]
[1740061020485,3.27232612,652.61,650.98,1.12404203]
[1740061020683,3.27232612,652.6,650.98,1.12404203]
[1740061020887,1.14400735,652.65,650.98,1.12404203]
[1740061022290,1.37203876,652.84,651.01,1.12404203]
[1740061022291,1.14400735,652.57,651.01,1.12404203]
[1740061024089,3.27254562,652.56,651.01,1.12404203]
[1740061024288,3.27254562,652.55,651.01,1.12404203]
[1740061024488,3.27254562,652.54,651.01,1.12404203]
[1740061024791,3.27254562,652.53,651.01,1.12404203]
[1740061025085,3.27254562,652.52,651.01,1.12404203]
[1740061025290,3.27254562,652.51,651.01,1.12404203]
[1740061025590,3.27254562,652.5,650.84,1.12404203]
[1740061025885,3.27254562,652.49,650.84,1.12404203]
[1740061026093,3.27254562,652.53,650.84,1.12404203]
[1740061026392,5.69625954,652.52,650.84,1.12404203]
[1740061026590,3.27254562,652.51,650.84,1.12404203]
[1740061026889,3.27254562,652.5,650.84,1.12404203]
[1740061027096,3.27254562,652.51,650.84,1.12404203]
[1740061027290,3.27254562,652.5,650.84,1.12404203]
[1740061027489,2.42371392,652.52,650.84,1.12404203]
[1740061027985,3.27220569,652.69,650.84,1.12404203]
[1740061028290,3.27220569,652.68,650.84,1.12404203]
[1740061028492,1.14400735,652.49,650.9,1.12404203]
[1740061029289,3.27220569,652.48,650.9,1.12404203]
[1740061029591,3.27220569,652.47,650.9,1.12404203]
[1740061029787,3.27220569,652.48,650.9,1.12404203]
[1740061030390,1.14400735,652.49,650.9,1.12404203]
[1740061030591,3.27132606,652.48,650.9,1.12404203]
[1740061030891,3.27132606,652.47,650.9,1.12404203]
[1740061031187,3.27132606,652.46,650.9,1.12404203]
[1740061031391,2.42371392,652.48,650.9,1.12404203]
[1740061031392,3.27132606,652.45,650.9,1.12404203]
[1740061031588,3.27132606,652.44,650.9,1.12404203]
[1740061031791,3.27132606,652.43,650.94,1.12404203]
[1740061031990,3.27114731,652.42,650.94,1.12404203]
[1740061032191,3.27101101,652.41,650.94,1.12404203]
[1740061032386,3.27101101,652.4,650.94,1.12404203]
[1740061032591,2.42371392,652.48,650.94,1.12404203]
[1740061032791,3.27099429,652.47,650.94,1.12404203]
[1740061032988,3.27099429,652.46,650.94,1.12404203]
[1740061033194,3.27099429,652.45,650.94,1.12404203]
[1740061033390,3.27099429,652.44,650.94,1.12404203]
[1740061033595,2.42371392,652.47,650.94,1.12404203]
[1740061034095,1.14400735,652.46,650.95,1.12404203]
[1740061036893,1.14400735,652.61,650.86,1.12404203]
[1740061039897,2.33437151,653.38,650.31,1.60157089]
[1740061039898,1.14400735,652.84,650.67,1.12404203]
[1740061042700,1.14400735,652.87,650.66,1.12404203]
[1740061043695,3.55165408,652.86,650.66,1.12404203]
[1740061043899,3.55165408,652.85,650.66,1.12404203]
[1740061044098,3.55165408,652.84,650.66,1.12404203]
[1740061044295,3.55165408,652.83,650.66,1.12404203]
[1740061044498,3.55165408,652.82,650.66,1.12404203]
[1740061044698,0.28161896,652.81,650.66,1.12404203]
[1740061045000,3.55165408,652.8,650.66,1.12404203]
[1740061045201,3.55165408,652.79,650.66,1.12404203]
[1740061045403,1.14400735,652.49,650.79,1.12404203]
[1740061047303,3.27003512,652.48,650.79,1.12404203]
[1740061047898,5.69245984,652.48,650.79,1.12404203]
[1740061048102,2.42242472,652.48,650.79,1.12404203]
[1740061048399,5.69245984,652.48,650.79,1.12404203]
[1740061048605,3.27003512,652.47,650.79,1.12404203]
[1740061049006,2.42242472,652.48,650.79,1.12404203]
[1740061049402,3.27003512,652.47,650.79,1.12404203]
[1740061049606,3.27003512,652.46,650.79,1.12404203]
[1740061049803,2.42242472,652.48,650.65,1.12404203]
[1740061049804,1.14400735,652.35,650.65,1.12404203]
[1740061052612,1.14400735,652.33,650.54,1.12404203]
[1740061056212,1.14400735,652.33,650.06,0.82922412]
[1740061056213,1.14400735,652.35,650.46,1.12404203]
[1740061058812,1.14400735,652.35,650.06,0.82922412]
[1740061058813,1.14400735,652.42,650.41,1.12404203]
[1740061061413,1.14400735,652.46,650.38,1.12404203]
[1740061064418,1.14400735,652.56,650.38,1.12404203]
[1740061066113,3.54000019,652.55,650.38,1.12404203]
[1740061066315,2.41593653,652.54,650.38,1.12404203]
[1740061067113,1.14400735,652.51,650.38,1.12404203]
[1740061067318,1.14400735,652.51,650.51,1.12404203]
[1740061068220,3.2583229,652.5,650.51,1.12404203]
[1740061068819,1.14400735,652.51,650.51,1.12404203]
[1740061069816,1.14400735,652.42,650.74,1.12404203]
[1740061072421,1.14400735,652.45,650.72,1.12404203]
[1740061075521,1.14400735,652.44,650.78,1.12404203]
[1740061078431,1.14400735,652.77,650.82,1.12404203]
[1740061081131,3.26451215,652.76,650.82,1.12404203]
[1740061081330,3.26451215,652.75,650.82,1.12404203]
[1740061081526,3.26451215,652.85,650.82,1.12404203]
[1740061081732,3.26451215,652.84,650.82,1.12404203]
[1740061081927,3.26451215,652.83,650.82,1.12404203]
[1740061082226,3.26451215,652.82,650.82,1.12404203]
[1740061082533,3.26451215,652.81,650.82,1.12404203]
[1740061082725,3.26451215,652.8,650.82,1.12404203]
[1740061082927,3.26451215,652.79,650.82,1.12404203]
[1740061083133,3.26451215,652.78,650.82,1.12404203]
[1740061083327,3.26451215,652.77,650.82,1.12404203]
[1740061083528,3.26451215,652.76,650.82,1.12404203]
[1740061083731,5.68260162,652.84,650.82,1.12404203]
[1740061083933,3.26451215,652.83,650.82,1.12404203]
[1740061084135,3.26451215,652.82,650.82,1.12404203]
[1740061084336,3.26451215,652.83,650.82,1.12404203]
[1740061084836,3.26451215,652.82,650.82,1.12404203]
[1740061085034,5.68260162,652.81,650.82,1.12404203]
[1740061085240,3.26451215,652.8,650.91,1.12404203]
[1740061085435,2.41808947,652.81,650.91,1.12404203]
[1740061086536,1.14400735,652.83,650.91,1.12404203]
[1740061088441,1.14400735,653.29,650.72,1.12404203]
[1740061088836,0.28148835,653.28,650.72,1.12404203]
[1740061090342,1.14400735,653.29,650.72,1.12404203]
[1740061090543,0.28149414,653.28,650.72,1.12404203]
[1740061092345,0.28149414,653.28,650.68,1.12404203]
[1740061092545,3.25851744,653.27,650.68,1.12404203]
[1740061092738,3.54001158,653.26,650.68,1.12404203]
[1740061092938,0.28149414,653.25,650.68,1.12404203]
[1740061093139,3.54001158,653.34,650.68,1.12404203]
[1740061093343,3.54001158,653.33,650.68,1.12404203]
[1740061093538,3.54001158,653.32,650.68,1.12404203]
[1740061093745,2.4130585,653.35,650.68,1.12404203]
[1740061093746,3.53999639,653.31,650.68,1.12404203]
[1740061093946,3.53999639,653.3,650.68,1.12404203]
[1740061094146,3.53999639,653.29,650.68,1.12404203]
[1740061094346,3.53999639,653.28,650.68,1.12404203]
[1740061094546,0.28147895,653.27,650.68,1.12404203]
[1740061094749,0.28147895,653.26,650.68,1.12404203]
[1740061095048,0.28147895,653.25,650.68,1.12404203]
[1740061095248,0.28147895,653.32,650.68,1.12404203]
[1740061095543,0.28147895,653.31,650.68,1.12404203]
[1740061095844,0.28147895,653.3,650.68,1.12404203]
[1740061096047,0.28147895,653.29,650.68,1.12404203]
[1740061096247,0.28147895,653.28,650.68,1.12404203]
[1740061096450,0.28147895,653.27,650.68,1.12404203]
[1740061096649,1.14400735,653.14,650.84,1.12404203]
[1740061100653,1.14400735,653.14,650.52,1.12881073]
[1740061100654,1.14400735,653.24,650.95,1.12404203]
[1740061104755,2.33437151,653.76,650.66,1.60038017]
[1740061104756,3.24098305,653.54,650.96,1.12404203]
[1740061104957,0.28131355,653.53,650.96,1.12404203]
[1740061105157,0.28131355,653.52,650.96,1.12404203]
[1740061105350,0.2813186,653.51,650.96,1.12404203]
[1740061105552,0.2813186,653.57,650.96,1.12404203]
[1740061105754,0.2813186,653.56,650.96,1.12404203]
[1740061105955,0.2813186,653.55,650.96,1.12404203]
[1740061106155,0.2813186,653.54,650.96,1.12404203]
[1740061106355,0.2813186,653.57,650.96,1.12404203]
[1740061106559,0.2813186,653.56,650.96,1.12404203]
[1740061106757,0.2813186,653.55,650.96,1.12404203]
[1740061106957,0.2813186,653.54,650.96,1.12404203]
[1740061107154,0.2813186,653.58,650.96,1.12404203]
[1740061107458,1.14400735,653.52,651.2,1.12404203]
[1740061107652,0.2813186,653.51,651.2,1.12404203]
[1740061109157,1.14400735,653.52,651.2,1.12404203]
[1740061109857,1.14400735,653.53,651.17,1.12404203]
[1740061112960,1.14400735,653.74,651.24,1.12404203]
[1740061113159,0.28123657,653.73,651.24,1.12404203]
[1740061115359,1.14400735,653.74,651.24,1.12404203]
[1740061115557,0.28120493,653.73,651.24,1.12404203]
[1740061116764,0.28120493,653.73,651.31,1.12404203]
[1740061116963,1.14400735,653.81,651.31,1.12404203]
[1740061117168,0.28117179,653.8,651.31,1.12404203]
[1740061118765,1.14400735,653.81,651.31,1.12404203]
[1740061119466,1.14400735,654.08,651.27,1.12404203]
[1740061119662,0.28114463,654.07,651.27,1.12404203]
[1740061120469,0.28114463,654.06,651.27,1.12404203]
[1740061120766,0.28114463,654.05,651.27,1.12404203]
[1740061120968,0.28114463,654.04,651.27,1.12404203]
[1740061121168,0.28114463,654.03,651.27,1.12404203]
[1740061121564,1.14400735,654.08,651.27,1.12404203]
[1740061122167,1.14400735,654.06,651.39,1.12404203]
[1740061122368,0.28112045,654.05,651.39,1.12404203]
[1740061122564,0.28112045,654.04,651.39,1.12404203]
[1740061122768,0.28112045,654.03,651.39,1.12404203]
[1740061123169,0.28112045,654.02,651.39,1.12404203]
[1740061123364,0.28112045,654.01,651.39,1.12404203]
[1740061123566,0.28112045,654.0,651.39,1.12404203]
[1740061123765,0.28112045,653.99,651.39,1.12404203]
[1740061123965,0.28112045,653.98,651.39,1.12404203]
[1740061124165,0.28112045,653.97,651.39,1.12404203]
[1740061124372,0.28112045,653.96,651.39,1.12404203]
[1740061124570,2.38683454,654.05,651.39,1.12404203]
[1740061124767,0.28114956,654.04,651.39,1.12404203]
[1740061125071,0.28114956,654.03,651.39,1.12404203]
[1740061125264,0.28114956,654.02,651.39,1.12404203]
[1740061125469,0.28114956,654.01,651.33,1.12404203]
[1740061125664,0.28114956,654.0,651.33,1.12404203]